Cogmind - Beta 9.5 @@@ ROGUE MODE // 2020.04.09 @ 13:45:26 // Winter2019/RPGLIKE Player: IAMCRAIG Result: Destroyed by as-32070 with Assembled Heavy Rifle Performance ------------- Evolutions (0) 0 Regions Visited (3) 600 Robots Destroyed (29) 145 Value Destroyed (810) 810 Prototype IDs (22) 440 Alien Tech Used (0) 0 Bonus (83) 83 TOTAL SCORE: 2078 Bonus ------- Follower Combat Kills 14 Aligned with FarCom 300 Friendly Fire -231 Cogmind --------- Core Integrity 0/1100 Matter 300/300 Energy 100/100 System Corruption 0% Temperature Cool (0) Movement Core (150) Ox2 Location -10/Exiles Parts ------- > --- POWER (1) -------- (None) > --- PROPULSION (2) --- (None) > --- UTILITY (3) ------ Improved Heat Sink > --- WEAPON (4) ------- Mining Claw Mining Claw Mining Claw > --- INVENTORY (2) ---- High-capacity Matter Pod (200) Grenade Launcher Peak State ------------ > --- POWER ------------ Light Nuclear Core > --- PROPULSION ------- Light Treads Carbon-fiber Leg > --- UTILITY ---------- Improved Heat Sink Weapon Shielding Light Armor Plating > --- WEAPON ----------- Mining Claw Mining Claw Mining Claw Mining Claw > --- INVENTORY -------- Light Nuclear Core Grenade Launcher [Rating: 16] Favorites ----------- Power Light Nuclear Core Engine Ion Engine Power Core Light Nuclear Core Propulsion Light Treads Treads Light Treads Leg Carbon-fiber Leg Utility Improved Heat Sink Device Improved Heat Sink Protection Weapon Shielding Weapon Mining Claw Ballistic Gun Light Assault Rifle Launcher Grenade Launcher Slashing Weapon Mining Claw Build | -11 -10 -10 -10 ------- Run | Scr Mat Min Exi Slots Evolved 6 | 3 2 1 . Power . | . . . . Propulsion 1 | 1 . . . Utility 2 | 1 1 . . Weapon 3 | 1 1 1 . Parts Attached 21 | 5 12 3 1 Power 5 | 1 3 . 1 Engine 1 | 1 . . . Core 4 | . 3 . 1 Reactor . | . . . . Propulsion 4 | 2 . 2 . Treads 2 | 2 . . . Leg 2 | . . 2 . Wheel . | . . . . Hover . | . . . . Flight . | . . . . Utility 5 | . 5 . . Device 2 | . 2 . . Storage . | . . . . Processor . | . . . . Hackware . | . . . . Protection 3 | . 3 . . Artifact . | . . . . Weapon 7 | 2 4 1 . Energy Gun . | . . . . Energy Cannon . | . . . . Ballistic Gun 2 | 2 . . . Ballistic Cannon . | . . . . Launcher 1 | . 1 . . Special Weapon . | . . . . Impact Weapon . | . . . . Slashing Weapon 4 | . 3 1 . Piercing Weapon . | . . . . Special Melee Weapon . | . . . . Unidentified Prototypes . | . . . . Parts Lost 5 | . . . 5 Power 1 | . . . 1 Propulsion 2 | . . . 2 Utility 2 | . . . 2 Weapon . | . . . . Highest Loss Streak 5 | . . . 5 Average Slot Usage (%) 97 | . 96 100 98 Core 10 | . 10 10 9 Treads 17 | . 24 13 . Leg 5 | . . 7 19 Device 10 | . 10 10 10 Protection 19 | . 19 20 19 Ballistic Gun 3 | . 6 . . Launcher 3 | . 6 . . Slashing Weapon 25 | . 14 37 39 Naked Turns . | . . . . Heaviest Build 18 | 7 17 18 18 Greatest Support 40 | 20 40 40 25 Greatest Overweight (x) 2 | 2 2 1 . Average Overweight (x) . | 1 . . . Largest Inventory Capacity 2 | . 2 2 2 Average Capacity 1 | . 1 2 2 Most Carried 2 | . 2 2 2 Average Carried 1 | . 1 1 1 Final Capacity 2 | . 2 2 2 Final Carried 2 | . 2 2 2 Class Distribution -------------------- 87% | Mutant 12% | Scavenger-Mutant Dominant Class ---------------- Mutant | -10/Materials Mutant | -10/Mines Mutant | -10/Exiles Resources | -11 -10 -10 -10 ----------- Run | Scr Mat Min Exi Matter Collected 590 | 234 306 30 20 Remotely . | . . . . Salvage Created 944 | . 743 201 . Parts 48 | . 40 8 . Haulers Intercepted 2 | . 2 . . Recyclers Shooed 1 | . . 1 . Parts Field Recycled . | . . . . Retrieved Matter . | . . . . Parts Self-Destructed . | . . . . Prevented . | . . . . Kills | -11 -10 -10 -10 ------- Run | Scr Mat Min Exi Combat Hostiles Destroyed 20 | . 15 5 . Melee 13 | . 8 5 . Guns 5 | . 5 . . AOE 2 | . 2 . . Classes Destroyed 7 | . 7 . . Worker 2 | . 2 . . Builder 1 | . 1 . . Hauler 2 | . 2 . . Recycler 2 | . 1 1 . Watcher 2 | . 2 . . Swarmer 6 | . 3 3 . Grunt 14 | . 12 2 . Best Kill Streak 5 | . 5 2 . Combat Bots Only 3 | . 3 2 . Max Kills in Single Turn 1 | . 1 1 . Gunslinging . | . . . . Exploded 1 | . 1 . . Melee 1 | . 1 1 . Uniques/NPCs Destroyed . | . . . . Combat | -11 -10 -10 -10 -------- Run | Scr Mat Min Exi Damage Taken 2526 | . 851 221 1454 Core 1881 | . 624 149 1108 Absorbed by Shields . | . . . . Redirected to Core 1351 | . 479 98 774 Core Remaining (%) 100 | 100 . . . Volleys Fired 49 | . 49 . . Largest 2 | . 2 . . Hottest 40 | . 40 . . Shots Fired 89 | . 89 . . Gun 80 | . 80 . . Cannon . | . . . . Launcher 9 | . 9 . . Special . | . . . . Kinetic 80 | . 80 . . Thermal . | . . . . Explosive 9 | . 9 . . Electromagnetic . | . . . . Robot Hit Streak 10 | . 10 . . Robot Miss Streak 3 | . 3 . . Penetration Max . | . . . . Secondary Targets 1 | . 1 . . Max Gunslinging Chain 1 | . 1 . . Shots Hit Robots 102 | . 75 15 12 Core Hits 46 | . 38 7 1 Critical Hits 1 | . . 1 . Critical Kills . | . . . . Critical Parts Destroyed 1 | . . 1 . Melee Attacks 129 | . 66 30 33 Impact . | . . . . Slashing 129 | . 66 30 33 Piercing . | . . . . Sneak Attacks 8 | . 4 3 1 Combat Hostiles . | . . . . Follow-up Attacks 14 | . 6 6 2 Damage Inflicted 2103 | . 1278 488 337 Guns 435 | . 435 . . Cannons . | . . . . Explosions 120 | . 120 . . Melee 1545 | . 720 488 337 Ramming 3 | . 3 . . Kinetic 435 | . 435 . . Thermal . | . . . . Explosive 120 | . 120 . . Electromagnetic . | . . . . Impact . | . . . . Slashing 1545 | . 720 488 337 Piercing . | . . . . Highest Corruption . | . . . . Average Corruption . | . . . . Corruption Purged . | . . . . Overload Shots . | . . . . Overflow Damage 110 | . 35 75 . Projectiles . | . . . . Explosions . | . . . . Melee 110 | . 35 75 . Knockbacks . | . . . . Impact . | . . . . Kinetic . | . . . . Secondary . | . . . . Self-Inflicted Damage 19 | . 19 . . Shots 1 | . 1 . . Rammed . | . . . . Targets Rammed 1 | . 1 . . Kicked . | . . . . Crushed 1 | . 1 . . Highest Temperature 38 | . 38 . . Average Temperature 17 | . 17 . . Received Heat Transfer 627 | . 435 72 120 Siege Activations . | . . . . Robots Corrupted . | . . . . Combat Hostiles . | . . . . Parts Fried . | . . . . Impact Corruptions . | . . . . Robots Melted . | . . . . Combat Hostiles . | . . . . Parts Melted . | . . . . Heat Transferred . | . . . . Parts Sabotaged . | . . . . Parts Stolen . | . . . . Parts Stripped . | . . . . Power Chain Reactions . | . . . . Missiles Intercepted . | . . . . Alert | -11 -10 -10 -10 ------- Run | Scr Mat Min Exi Peak Influence 266 | . 266 219 . Average Influence 99 | . 91 118 . Maximum Alert Level 1 | . 1 1 . Low Security (%) 90 | 100 88 92 . Level 1 9 | . 11 7 . Level 2 . | . . . . Level 3 . | . . . . Level 4 . | . . . . Level 5 . | . . . . High Security . | . . . . Max Security . | . . . . Squads Dispatched 3 | . 3 . . Investigation 3 | . 3 . . Extermination . | . . . . Reinforcement . | . . . . Assault . | . . . . Garrison . | . . . . Intercept . | . . . . Construction Impeded . | . . . . Haulers Reinforced . | . . . . Stealth | -11 -10 -10 -10 --------- Run | Scr Mat Min Exi Distress Signals 2 | . 2 . . Communications Jammed . | . . . . Distress Signals . | . . . . Times Spotted 46 | . 30 8 8 Peak Tracking Total 9 | . 6 3 9 Tactical Retreats 1 | . 1 . . Traps | -11 -10 -10 -10 ------- Run | Scr Mat Min Exi Traps Triggered 2 | . 2 . . Indirectly . | . . . . Trap Hack Attempts . | . . . . Triggered . | . . . . Disarmed . | . . . . Reprogrammed . | . . . . Reused . | . . . . Traps Extracted . | . . . . Installed . | . . . . Triggered . | . . . . Machines | -11 -10 -10 -10 ---------- Run | Scr Mat Min Exi Machines Disabled 18 | . 11 7 . Max in Single Turn 2 | . 2 1 . Machines Sabotaged . | . . . . Garrisons Compromised . | . . . . Overloaded Fab Kills . | . . . . Fab Network Shutdowns . | . . . . Hacking | -11 -10 -10 -10 --------- Run | Scr Mat Min Exi Machines Accessed 11 | . 10 . 1 Terminals 7 | . 7 . . Fabricators . | . . . . Repair Stations 1 | . 1 . . Recycling Units 2 | . 2 . . Scanalyzers . | . . . . Garrison Access . | . . . . Total Hacks 42 | . 41 . 1 Successful 28 | . 27 . 1 Failed 14 | . 14 . . Catastrophic . | . . . . Database Lockouts . | . . . . Manual 23 | . 22 . 1 Terminals 23 | . 23 . . Fabricators . | . . . . Repair Stations 4 | . 4 . . Recycling Units 14 | . 14 . . Scanalyzers . | . . . . Garrison Access . | . . . . Terminal Hacks 8 | . 7 . 1 Record 1 | . 1 . . Robot Analysis 2 | . 2 . . Locate Traps 1 | . 1 . . Zone Layout 3 | . 3 . . EX-Prototype ID Bank 1 | . . . 1 Fabricator Hacks . | . . . . Repair Station Hacks 2 | . 2 . . Scan Component 1 | . 1 . . Repair 1 | . 1 . . Recycling Unit Hacks 6 | . 6 . . Report Inventory 3 | . 3 . . Retrieve Components 3 | . 3 . . Scanalyzer . | . . . . Garrison Access Hacks . | . . . . Unauthorized Hacks 31 | . 31 . . Terminals 6 | . 6 . . Botnet 5 | . 5 . . Operators 1 | . 1 . . Fabricators . | . . . . Repair Stations . | . . . . Recycling Units 6 | . 6 . . Monitor 1 | . 1 . . Reject 1 | . 1 . . Recyclers 1 | . 1 . . Mask 1 | . 1 . . Tunnel 2 | . 2 . . Scanalyzers . | . . . . Garrison Access . | . . . . Data Cores Recovered . | . . . . Used . | . . . . Hacking Detections 10 | . 10 . . Full Trace Events . | . . . . Feedback Events . | . . . . Feedback Blocked . | . . . . Robot Schematics Acquired . | . . . . Robots Built . | . . . . Matter . | . . . . Time . | . . . . Total Robot Build Rating . | . . . . Part Schematics Acquired . | . . . . Parts Built . | . . . . Matter . | . . . . Time . | . . . . Total Part Build Rating . | . . . . Parts Repaired 1 | . 1 . . Time 13 | . 13 . . Parts Recycled . | . . . . Recycled Matter . | . . . . Retrieved Matter . | . . . . Retrieved Components 16 | . 16 . . Parts Scanalyzed . | . . . . Part Schematics Acquired . | . . . . Parts Damaged . | . . . . Bothacking | -11 -10 -10 -10 ------------ Run | Scr Mat Min Exi Used RIF Installer . | . . . . Robots Hacked . | . . . . Non-combat . | . . . . Combat . | . . . . Robot Hacks Applied . | . . . . Relay Couplers Released . | . . . . Robots Rewired . | . . . . Allies Hacked . | . . . . Hacks Repelled . | . . . . Allies | -11 -10 -10 -10 -------- Run | Scr Mat Min Exi Total Allies 2 | . . 2 . Largest Group 2 | . . 2 1 Highest-Rated Group 50 | . . 50 19 Highest-Rated Ally 31 | . . 31 19 Total Orders . | . . . . Ally Attacks 7 | . . 7 . Total Damage 107 | . . 107 . Kills 2 | . . 2 . Allies Corrupted . | . . . . Allies Melted . | . . . . Intel | -11 -10 -10 -10 ------- Run | Scr Mat Min Exi Robot Analysis Total 2 | . 2 . . Derelict Logs Recovered 3 | . . 3 . Drone Launches . | . . . . Drone Recoveries . | . . . . Exploration | -11 -10 -10 -10 ------------- Run | Scr Mat Min Exi Turns Passed 3490 | 42 1880 947 621 Spaces Moved 2008 | 34 948 571 455 Core 153 | 33 120 . . Treads 1165 | 1 828 336 . Legs 690 | . . 235 455 Wheels . | . . . . Hover . | . . . . Flight . | . . . . Fastest Speed 50 | 50 150 120 120 Average Speed 144 | 103 158 143 120 Slowest Speed 160 | 160 160 160 120 Overloaded Moves . | . . . . Propulsion Burnouts . | . . . . Robots Hopped . | . . . . Cave-ins Triggered . | . . . . Exploration Rate (%) 66 | 3 94 99 68 Regions Visited 3 Branch Regions 2 Pre-discovered Areas 3 | . 2 1 . Known Exits Taken . | . . . . Unknown Exits Taken 3 | 1 1 1 . Scrap Searched 1 | . . 1 . Spaces Dug 17 | . 15 . 2 Terrain Destroyed 94 | . 92 . 2 Melee 7 | . 5 . 2 Projectile . | . . . . AOE 87 | . 87 . . Actions | -11 -10 -10 -10 --------- Run | Scr Mat Min Exi Total 2299 | 38 1131 650 480 Wait 71 | . 32 39 . Move 2005 | 33 947 570 455 Hop . | . . . . Pick Up 4 | . 3 . 1 Fast Attach 15 | 5 8 2 . Attach 2 | . 1 1 . Detach . | . . . . Swap 4 | . 3 . 1 Drop 9 | . 6 2 1 Fire 49 | . 49 . . Melee 100 | . 56 22 22 Ram . | . . . . Kick . | . . . . Crush 1 | . 1 . . Escape Stasis . | . . . . Rewire . | . . . . Trap . | . . . . Miscellaneous 39 | . 25 14 . Route ------- -11/Scrapyard -10/Materials (discovered 5 exits: [*Mat x3] / [*Min x2]) -10/Mines (discovered 3 exits: [*Mat x2] / *Exi) -10/Exiles History --------- Turn | Location | Event 1 | -11/Scrapyard | Upgraded with Propulsion slot (x1) 1 | -11/Scrapyard | Upgraded with Utility slot (x1) 1 | -11/Scrapyard | Upgraded with Weapon slot (x1) 8 | -11/Scrapyard | Discovered new exit (range 14) 43 | -11/Scrapyard | Entered Materials 70 | -10/Materials | Discovered new exit (range 16) 191 | -10/Materials | Discovered new exit (range 5) 317 | -10/Materials | Build established: Mutant 341 | -10/Materials | Upgraded with Utility slot (x1) 434 | -10/Materials | Discovered new exit (range 14) 681 | -10/Materials | Core integrity fell below 50% 783 | -10/Materials | Discovered new exit (range 16) 837 | -10/Materials | Discovered new exit (range 6) 1029 | -10/Materials | Repaired Lgt. Armor Plating 1149 | -10/Materials | Reached level 2 1198 | -10/Materials | Upgraded with Weapon slot (x1) 1859 | -10/Materials | Reached level 3 1923 | -10/Materials | Entered Mines 1955 | -10/Mines | Discovered new exit (range 11) 1981 | -10/Mines | Learned location of 1 exit from Materials 2327 | -10/Mines | Upgraded with Weapon slot (x1) 2352 | -10/Mines | Discovered new exit (range 4) 2437 | -10/Mines | Learned 2 Materials zone layouts 2443 | -10/Mines | Learned location of Storage (-8) 2454 | -10/Mines | Reached level 4 2560 | -10/Mines | Deemed a non-threat by the Exiles lab entrance 2560 | -10/Mines | Discovered new exit (range 5) 2848 | -10/Mines | Build established: Scavenger-Mutant 2870 | -10/Mines | Entered Exiles 2870 | -10/Exiles | Accompanied by 1 ally 2902 | -10/Exiles | Met 8R-AWN 2922 | -10/Exiles | Met EX-HEX 3005 | -10/Exiles | Met EX-DEC 3125 | -10/Exiles | Met EX-BIN 3276 | -10/Exiles | Build established: Mutant 3302 | -10/Exiles | Aligned with FarCom system 3303 | -10/Exiles | Given EX-Vault access code 3338 | -10/Exiles | Opened EX-Vault 3374 | -10/Exiles | Warned to stay clear of 0b10 Research branches 3452 | -10/Exiles | Attacked by the Exiles 3483 | -10/Exiles | Core integrity fell below 20% 3491 | -10/Exiles | Destroyed by as-32070 with Assembled Heavy Rifle Last Messages --------------- 03483_ Penetrated by HV Slug. 03483_ HV Slug penetrates as-21168. 03483_ as-21168 suffers critical hit. 03483_ Penetrated by HV Slug. 03483_ HV Slug penetrates as-21168. 03483_ as-21168 suffers critical hit. 03483_ as-21168 destroyed. 03487_ Penetrated by HV Slug. 03487_ HV Slug penetrates Earth. 03487_ Penetrated by HV Slug. 03487_ Critical hit. 03487_ Lgt. Nuclear Core destroyed. 03487_ HV Slug penetrates Earth. 03489_ Upgraded: Heat Dissipation (+6) 03489_ Penetrated by HV Slug. 03489_ Critical hit. 03489_ Carbon-fiber Leg destroyed. 03489_ HV Slug penetrates Earth. 03489_ Penetrated by HV Slug. 03489_ HV Slug penetrates Earth. Map ----- +----------------------------------------------------+ | """#????????????????????????????????????????????? | | """#????????????????????????????????????????????? | | """#????????????????????????????????????????????? | | """#????????????????????????????????????????????? | | """##???????????????????????????????????????????? | | """""???????????????????????????????????????????? | | """##???????????????????????????????????????????? | | """"????????????????????????????????????????????? | | #????????????????????????????????????????????? | | """"#????????????????????????????????????????????? | | #####????????????????????#???????????????????????? | | ????????????????????????? ???????????????????????? | | ????????????????????????? ???????????????????????? | | ????????????????????????? ???????????????????????? | | #########???????????????? ????????????????????? ? | | #"""""""""##????????????# #???????????????????? | | " """ """"##???????????# #???##??????????????# | | "" " #???????????# #??# #????????????## | | " """#???????????# #?# #?????????????# | | " "#???????????#;##; ??????????????# | | " "##?????????## a #??????????????## | | ""###???????# / #?????????????## # | | """#??????## % ##????????????# # | | "#????### % ###????????### #? | | ##???# a aa ########## #? | | ##?## @a #""""## #?? | | ### g * ##? | | ## * #? | | #### ## | | ""#?#"" ""#### # | | #"""##?#######??#### * | | ######??????????????##### | | ##???????????????????????### | | " ##??????????????????????????### | | """ ""#?????????????????????????????### | | " ""#" "##??????????????????????????????#" | | " """##"""""""##???????????????????????????????### | | """"###########??????????????????????????????????? | | #####????????????????????????????????????????????? | | ?????????????????????????????????????????????????? | | ?????????????????????????????????????????????????? | | ?????????????????????????????????????????????????? | | ?????????????????????????????????????????????????? | | ?????????????????????????????????????????????????? | | ?????????????????????????????????????????????????? | | ?????????????????????????????????????????????????? | | ?????????????????????????????????????????????????? | | ?????????????????????????????????????????????????? | | ?????????????????????????????????????????????????? | | ?????????????????????????????????????????????????? | +----------------------------------------------------+ Best States ------------- Heat Dissipation 49 Energy Generation 14 Energy Capacity 250 Matter Stores 300 Matter Capacity 300 Sight Range 16 Terrain Scan Density 10 Armor Coverage 150 Weapon Shielding 33 Evasion (%) 50 Recoil Reduction 2 Item Schematics ----------------- None Robot Schematics ------------------ None Fabricated ------------ Nothing Alien Tech Used ----------------- None Achievements -------------- None Challenges ------------ None RPGLIKE | -11 -10 -10 -10 --------- Run | Scr Mat Min Exi Levels Raised 3 | . 2 1 . XP Earned 8476 | 3000 3165 1961 350 XP Spent 7500 | 1500 2750 1100 2150 Upgrades 24 | 3 5 1 15 Propulsion Slot 1 | 1 . . . Utility Slot 2 | 1 1 . . Weapon Slot 3 | 1 1 1 . Core Integrity 10 | . . . 10 Heat Dissipation 1 | . . . 1 Inventory Capacity 2 | . 2 . . Ranged Accuracy 1 | . 1 . . Melee Accuracy 4 | . . . 4 Protomatter Created 228 | . 192 36 . Integrity Restored 869 | . 576 293 . Core 773 | . 576 197 . Parts 96 | . . 96 . Protomatter Decayed . | . . . . Game ------ Seed DataCloakingScrap Manual? 0 Play Time 00:24:32 Cumulative 139.3 hours Start 2020.04.09 @ 13:19:35 End 2020.04.09 @ 13:45:26 Sessions 1 Manual Loads 0 Difficulty Rogue Special Mode Winter2019/RPGLIKE Game No. 52 Rogue 52 Adventurer 0 Explorer 0 Win Type - Total 1 Types 1/0/0/0/0/0/0 Lore% 57 Gallery% 68 Achievement% 62 Wizard Run 0 Options --------- ASCII 1 Keyboard 1 Movement Numpad Keybinds 0 Fullscreen 1 Font 16/SmallcapsGlow Map View 75x55 Tactical HUD 1 Map Filters NONE Filters NONE Steam 1 RUN: c29f51eb-156c-4c11-911c-b2b914f3557d